bitfinex/quotes_SOLUSD_20251009
["timestamp","ask_amount","ask_price","bid_price","bid_amount"]
[1759994849378,0.66,224.99,224.94,15.5597048]
[1759994849584,32.82,224.99,224.94,16.2497048]
[1759994849766,0.66,224.98,224.94,15.5597048]
[1759994849965,33.49606827,224.99,224.94,15.5597048]
[1759994849966,0.66,224.97,224.94,15.5597048]
[1759994850773,1.99606827,224.96,224.91,11.11545076]
[1759994850970,32.14,224.95,224.91,11.11545076]
[1759994851168,32.14,224.95,224.92,4.44602525]
[1759994851780,32.14,224.95,224.91,11.11545076]
[1759994852658,32.14,224.95,224.91,15.56167369]
[1759994853059,34.13606827,224.95,224.91,4.44622293]
[1759994853281,1.99606827,224.94,224.88,12.45303634]
[1759994853484,1.33606827,224.93,224.89,4.44661834]
[1759994853683,1.99606827,224.93,224.89,4.44661834]
[1759994854086,1.99606827,224.92,224.86,4.44721159]
[1759994854281,32.12,224.91,224.86,5.78327986]
[1759994854461,32.12,224.91,224.86,6.47327986]
[1759994855164,32.12,224.91,224.86,17.59130885]
[1759994855387,32.12,224.91,224.86,6.47327986]
[1759994855578,32.78,224.91,224.86,4.44721159]
[1759994857269,32.78,224.91,224.86,5.78327986]
[1759994857470,32.78,224.91,224.86,5.09721159]
[1759994859496,0.66,224.91,224.86,5.09721159]
[1759994859668,32.06,224.9,224.86,17.55130885]
[1759994860387,0.66,224.91,224.86,17.55130885]
[1759994860579,32.7,224.91,224.86,17.55130885]
[1759994861380,0.66,224.91,224.86,17.55130885]
[1759994861581,32.04,224.9,224.86,17.55130885]
[1759994862871,32.04,224.9,224.86,16.21524058]
[1759994863777,32.68,224.91,224.86,16.21524058]
[1759994863979,0.72,224.9,224.84,2.04606827]
[1759994865303,32.0,224.89,224.84,2.04606827]
[1759994865485,32.72,224.89,224.84,2.04606827]
[1759994865687,32.72,224.89,224.85,4.44740938]
[1759994866507,0.72,224.88,224.85,4.44740938]
[1759994866700,0.72,224.87,224.85,4.44740938]
[1759994866879,32.0,224.88,224.85,4.44740938]
[1759994867084,32.72,224.88,224.85,4.44740938]
[1759994867793,0.72,224.87,224.83,15.56731752]
[1759994867999,32.0,224.88,224.83,4.447805]
[1759994868203,0.72,224.87,224.83,4.447805]
[1759994868401,0.72,224.86,224.83,4.447805]
[1759994869721,37.78300702,224.88,224.81,4.44815557]
[1759994869884,0.72,224.86,224.81,5.78422384]
[1759994870226,32.0,224.85,224.81,6.49422384]
[1759994871904,32.0,224.85,224.81,5.15815557]
[1759994872595,5.16701722,224.87,224.81,5.15815557]
[1759994872806,32.0,224.86,224.81,5.15815557]
[1759994873110,32.0,224.85,224.81,5.15815557]
[1759994873508,32.0,224.85,224.81,0.71]
[1759994873889,2.05606827,224.87,224.81,0.71]
[1759994874094,32.0,224.85,224.81,0.71]
[1759994874301,2.05606827,224.87,224.81,0.71]
[1759994874506,5.16703131,224.87,224.79,4.44859646]
[1759994874704,32.0,224.86,224.8,2.04606827]
[1759994874906,32.0,224.85,224.8,2.04606827]
[1759994875195,32.0,224.85,224.81,0.71]
[1759994875410,32.72,224.85,224.82,4.44800284]
[1759994876406,0.72,224.85,224.82,4.44800284]
[1759994876791,32.72,224.85,224.82,4.44800284]
[1759994877209,4.44668285,224.89,224.83,0.71]
[1759994877409,36.4468409,224.88,224.83,5.1576948]
[1759994877607,0.72,224.87,224.83,4.4476948]
[1759994877991,32.0,224.86,224.83,4.4476948]
[1759994878413,32.72,224.86,224.83,4.4476948]
[1759994878816,32.0,224.86,224.82,4.44800284]
[1759994879115,6.50290917,224.88,224.82,5.15800284]
[1759994879316,32.0,224.86,224.82,5.15800284]
[1759994879497,0.72,224.85,224.8,5.7842735]
[1759994879699,0.72,224.84,224.8,4.44820523]
[1759994880106,5.7,224.85,224.8,5.15820523]
[1759994880312,6.42,224.85,224.8,6.4942735]
[1759994880814,38.42,224.85,224.8,6.4942735]
[1759994880998,6.42,224.85,224.8,5.15820523]
[1759994881198,6.42,224.85,224.8,6.4942735]
[1759994881398,38.42,224.85,224.8,6.4942735]
[1759994882317,6.42,224.85,224.8,6.4942735]
[1759994882496,38.42,224.85,224.8,6.4942735]
[1759994882914,6.42,224.85,224.81,0.71]
[1759994883101,38.42,224.85,224.81,0.71]
[1759994883506,38.42,224.85,224.8,5.7842735]
[1759994883802,38.42,224.85,224.8,5.15820523]
[1759994884118,6.42,224.85,224.8,5.15820523]
[1759994884320,38.42,224.85,224.8,4.44820523]
[1759994884523,38.42,224.85,224.8,5.15820523]
[1759994884902,6.42,224.85,224.81,0.71]
[1759994885097,38.42,224.85,224.8,4.44820523]
[1759994885318,38.42,224.85,224.8,5.15820523]
[1759994885704,134.8,224.84,224.8,5.15820523]
[1759994887004,135.48,224.84,224.8,5.15820523]
[1759994887413,167.48,224.84,224.8,5.15820523]
[1759994888719,135.48,224.84,224.8,5.15820523]
[1759994888911,166.8,224.84,224.81,0.72]
[1759994889107,166.8,224.84,224.82,0.72]
[1759994889322,134.8,224.84,224.82,0.72]
[1759994889520,166.8,224.84,224.82,0.72]
[1759994889934,134.8,224.84,224.8,5.7842735]
[1759994890116,166.8,224.84,224.81,0.72]
[1759994890523,134.8,224.84,224.8,5.7842735]
[1759994890722,134.8,224.84,224.8,6.5042735]
[1759994891018,166.8,224.84,224.8,6.5042735]
[1759994891221,167.48,224.84,224.8,4.44820523]
[1759994891412,135.48,224.84,224.8,4.44820523]
[1759994891610,32.0,224.83,224.8,4.44820523]
[1759994891817,32.68,224.83,224.8,4.44820523]
[1759994892629,32.68,224.83,224.77,13.64994537]
[1759994892630,34.01606827,224.82,224.77,13.64994537]
[1759994892826,32.68,224.81,224.77,13.64994537]
[1759994893020,0.68,224.8,224.77,13.64994537]
[1759994893323,0.68,224.8,224.77,4.54896211]
[1759994893728,32.0,224.79,224.77,4.54896211]
[1759994894026,0.68,224.8,224.77,4.54896211]
[1759994894325,32.68,224.79,224.77,0.1]
[1759994894525,32.0,224.78,224.77,0.1]
[1759994894711,0.68,224.78,224.77,4.5489923]
[1759994894914,0.68,224.8,224.77,4.5489923]
[1759994895306,32.0,224.79,224.77,4.5489923]
[1759994895521,1.33606827,224.82,224.77,4.5489923]
[1759994895814,32.0,224.81,224.77,5.2689923]
[1759994896131,0.68,224.81,224.77,5.2689923]
[1759994896425,136.13606827,224.84,224.77,5.2689923]
[1759994896426,0.68,224.8,224.77,0.1]
[1759994896824,0.68,224.8,224.77,4.54894153]
[1759994897021,0.68,224.79,224.77,4.54894153]
[1759994897327,135.48,224.84,224.78,0.72]
[1759994897518,134.8,224.83,224.78,0.72]
[1759994897726,134.8,224.83,224.77,17.00749055]
[1759994897916,32.68,224.82,224.77,15.67142228]
[1759994898115,32.68,224.81,224.77,15.67142228]
[1759994898417,0.68,224.8,224.77,15.67142228]
[1759994898617,32.68,224.8,224.77,15.67142228]
[1759994899218,0.68,224.8,224.77,15.67142228]
[1759994899420,32.0,224.8,224.77,15.67142228]
[1759994899641,0.68,224.82,224.77,15.67142228]
[1759994899961,5.7,224.8,224.77,15.67142228]
[1759994900448,5.7,224.8,224.79,1.33606827]
[1759994900649,134.8,224.83,224.79,1.33606827]
[1759994900959,134.8,224.83,224.79,0.72]
[1759994901167,134.8,224.83,224.8,0.72]
[1759994901461,134.8,224.83,224.81,4.4482007]
[1759994903766,166.78,224.83,224.77,0.82]
[1759994903949,2.01606827,224.82,224.78,4.44879437]
[1759994904152,32.66,224.81,224.77,0.1]
[1759994904366,33.31606827,224.8,224.77,0.1]
[1759994904569,1.33606827,224.8,224.77,0.1]
[1759994904746,32.66,224.79,224.77,4.54895738]
[1759994905353,0.68,224.78,224.77,4.54895738]
[1759994905557,31.98,224.78,224.77,4.54895738]
[1759994906269,139.24782606,224.83,224.77,4.54895738]
[1759994906270,134.8,224.89,224.8,20.8]
[1759994906441,32.66,224.88,224.8,21.52]
[1759994906642,0.68,224.88,224.82,1.33606827]
[1759994906843,31.98,224.87,224.83,2.05606827]
[1759994907144,2.01606827,224.9,224.83,0.72]
[1759994907359,33.31606827,224.89,224.83,0.72]
[1759994907660,1.33606827,224.89,224.83,0.72]
[1759994907864,31.98,224.88,224.83,2.05606827]
[1759994908162,1.33606827,224.9,224.85,4.44740938]
[1759994908366,32.66,224.89,224.85,4.44740938]
[1759994908943,31.98,224.89,224.85,15.56593284]
[1759994909566,0.68,224.89,224.85,15.56593284]
[1759994909740,0.68,224.93,224.86,0.72]
[1759994909942,31.98,224.92,224.87,2.08836639]
[1759994910164,31.98,224.92,224.88,5.16681607]
[1759994910462,0.68,224.95,224.89,0.72]
[1759994910662,34.06836639,224.94,224.89,0.72]
[1759994910855,34.74836639,224.94,224.89,0.72]
[1759994911057,32.66,224.94,224.89,0.72]
[1759994911242,0.68,224.94,224.9,4.44642063]
[1759994911450,2.08836639,224.96,224.9,16.2824722]
[1759994911785,0.68,224.97,224.9,18.37083859]
[1759994911953,31.98,224.97,224.93,2.08836639]
[1759994912146,0.68,225.0,224.94,2.80836639]
[1759994912344,0.68,225.02,224.96,2.08836639]
[1759994912865,31.98,225.01,224.96,2.08836639]
[1759994913067,0.68,225.0,224.95,2.80836639]
[1759994913257,0.68,224.99,224.93,20.8]
[1759994913460,2.08836639,225.0,224.95,4.44543231]
[1759994913658,32.66,225.0,224.95,5.16543231]
[1759994913860,34.06836639,225.01,224.95,18.36737949]
[1759994914453,2.08836639,224.98,224.95,4.44543231]
[1759994914658,2.08836639,224.96,224.92,4.44595537]
[1759994914861,2.08836639,224.94,224.92,4.44595537]
[1759994915168,34.74836639,224.96,224.92,4.44595537]
[1759994915349,0.68,224.95,224.9,15.56223346]
[1759994915867,0.68,224.94,224.9,15.56223346]
[1759994916168,31.96,224.97,224.92,2.08836639]
[1759994916360,2.08836639,224.98,224.93,0.68]
[1759994916566,31.96,224.97,224.93,0.68]
[1759994917070,31.96,224.97,224.92,2.08836639]
[1759994917252,0.68,224.98,224.93,2.08836639]
[1759994917455,31.96,224.98,224.95,6.5337987]
[1759994917660,2.76836639,225.01,224.95,6.5337987]
[1759994917856,17.87982219,225.05,224.96,2.08836639]
[1759994918054,2.76836639,225.03,224.96,2.08836639]
[1759994918271,2.76836639,225.02,224.96,2.08836639]
[1759994918652,31.96,225.01,224.95,16.2390131]
[1759994918884,31.96,225.01,224.96,2.08836639]
[1759994919057,2.08836639,225.02,224.96,2.76836639]
[1759994919255,31.96,225.01,224.97,4.44503711]
[1759994919457,32.64,225.01,224.97,4.44503711]
[1759994919858,2.76836639,225.04,224.98,2.08836639]
[1759994920059,31.96,225.03,224.98,2.08836639]
[1759994920355,31.96,225.03,224.99,2.76836639]
[1759994920671,31.96,225.04,224.99,2.08836639]
[1759994920872,32.64,225.04,224.99,2.08836639]
[1759994921068,9.09171337,225.05,225.0,2.76836639]
[1759994921069,7.00334698,225.05,225.0,2.76836639]
[1759994921273,7.00334698,225.05,225.01,4.44424692]
[1759994921571,38.96334698,225.05,225.01,6.53261331]
[1759994921750,7.00334698,225.05,225.01,16.23486422]
[1759994921952,7.00334698,225.05,225.03,2.08836639]
[1759994922175,7.00334698,225.05,225.01,4.44424692]
[1759994922371,7.00334698,225.05,225.02,2.08836639]
[1759994922753,7.00334698,225.05,225.03,2.08836639]
[1759994923358,7.00334698,225.05,225.04,4.44365446]
[1759994924580,137.58836639,225.11,225.04,18.341157]
[1759994924758,31.96,225.09,225.06,2.08836639]
[1759994924959,31.96,225.1,225.06,2.08836639]
[1759994925277,0.7,225.11,225.08,4.44286475]
[1759994925578,32.66,225.11,225.08,4.44286475]
[1759994926075,31.96,225.11,225.08,4.44286475]
[1759994926276,31.94,225.12,225.09,2.08836639]
[1759994926479,31.94,225.12,225.08,4.44286475]
[1759994926677,32.64,225.13,225.09,2.08836639]
[1759994926879,32.64,225.13,225.0,10.87647521]
[1759994926880,2.78836639,225.12,225.0,10.87647521]
[1759994927188,2.08836639,225.09,225.03,2.08836639]
[1759994927385,2.08836639,225.07,224.99,0.7]
[1759994927592,0.7,225.06,224.99,16.25624694]
[1759994927774,0.7,225.06,225.01,2.08836639]
[1759994928383,0.7,225.06,225.02,2.08836639]
[1759994928968,2.78836639,225.09,225.03,2.08836639]
[1759994929169,31.94,225.08,225.03,2.78836639]
[1759994929361,0.7,225.08,225.04,4.44365446]
[1759994929562,0.7,225.07,225.04,6.53202085]
[1759994930561,0.7,225.06,225.02,6.53225643]
[1759994931283,34.02836639,225.08,225.02,6.53225643]
[1759994931486,34.72836639,225.08,225.02,7.23225643]
[1759994931893,34.72836639,225.08,225.03,2.08836639]
[1759994932086,0.7,225.07,225.04,4.44365446]
[1759994932382,34.02836639,225.08,225.04,4.44365446]
[1759994932591,0.7,225.06,225.04,4.44365446]
[1759994933786,0.7,225.06,225.03,2.08836639]
[1759994933984,32.64,225.08,225.03,2.08836639]
[1759994934176,0.7,225.07,225.03,2.08836639]
[1759994935378,0.7,225.07,225.04,4.44365446]
[1759994936493,135.5,225.07,225.02,6.53229594]
[1759994936791,135.5,225.07,225.02,7.23229594]
[1759994937993,0.7,225.07,225.02,7.23229594]
[1759994938576,2.08836639,225.04,225.01,4.44424458]
[1759994938890,34.70836639,225.04,225.01,4.44424458]
[1759994939088,32.62,225.04,225.01,4.44424458]
[1759994941890,0.7,225.03,225.0,6.53279897]
[1759994942067,0.7,225.03,225.0,4.44443258]
[1759994942268,31.92,225.04,225.0,4.44443258]
[1759994942488,0.7,225.03,225.0,4.44443258]
[1759994942697,0.7,225.02,225.0,4.44443258]
[1759994942879,0.7,225.01,225.0,4.44443258]
[1759994943394,0.7,225.03,225.0,4.44443258]
[1759994943603,0.7,225.03,224.99,2.08836639]
[1759994943984,134.8,225.02,224.98,6.53320593]
[1759994944183,134.8,225.02,224.98,4.44483954]
[1759994944184,135.5,225.02,224.98,4.44483954]
[1759994944516,31.92,225.01,224.98,4.44483954]
[1759994944895,31.92,225.01,224.99,2.08836639]
[1759994945095,134.8,225.02,225.0,2.78836639]
[1759994945284,134.8,225.02,224.98,4.44483954]
[1759994945285,134.8,225.02,225.01,2.78836639]
[1759994946008,134.8,225.02,225.01,7.23261331]
[1759994946383,134.8,225.09,225.01,18.34323061]
[1759994946582,31.92,225.08,225.05,2.08836639]
[1759994946901,31.92,225.08,225.05,2.77836639]
[1759994948185,31.92,225.08,225.06,6.53162596]
[1759994948900,134.8,225.09,225.06,6.53162596]
[1759994949094,134.8,225.09,225.08,2.08836639]
[1759994949294,134.8,225.09,225.07,2.08836639]
[1759994950219,134.8,225.09,225.08,4.44286475]
[1759994950418,134.8,225.09,225.08,7.22123114]
[1759994952095,0.68,225.15,225.08,18.32839303]
[1759994952297,31.9,225.14,225.11,2.08836639]
[1759994952502,0.68,225.15,225.11,2.08836639]
[1759994952819,31.9,225.13,225.11,2.08836639]
[1759994954626,134.8,225.17,225.12,6.53044172]
[1759994954827,31.9,225.16,225.13,2.08836639]
[1759994955624,32.58,225.16,225.13,2.08836639]
[1759994955896,32.58,225.16,225.12,6.53044172]
[1759994956137,31.9,225.15,225.12,6.53044172]
[1759994956832,31.9,225.15,225.12,4.44207533]
[1759994958229,134.8,225.17,225.12,2.77836639]
[1759994958412,134.8,225.17,225.1,11.10603306]
[1759994958413,134.8,225.17,225.14,2.08836639]
[1759994958611,134.8,225.17,225.1,11.10603306]
[1759994958612,134.8,225.17,225.15,2.77836639]
[1759994959004,166.7,225.17,225.15,2.77836639]
[1759994959418,166.7,225.17,225.15,2.08836639]
[1759994959824,134.8,225.16,225.14,6.53004712]
[1759994960017,134.8,225.16,225.14,7.22004712]
[1759994960216,134.8,225.16,225.14,4.44168073]
[1759994960429,0.68,225.15,225.13,20.8]
[1759994960742,0.68,225.15,225.13,25.24187802]
[1759994961116,33.96836639,225.15,225.11,4.44210708]
[1759994961315,0.68,225.14,225.11,4.44210708]
[1759994962332,31.88,225.15,225.11,4.44210708]
[1759994962527,32.56,225.15,225.11,4.44210708]
[1759994963457,32.56,225.15,225.11,6.53047347]
[1759994964132,32.56,225.15,225.12,2.08836639]
[1759994964133,31.88,225.15,225.12,2.08836639]
[1759994964332,31.88,225.15,225.11,7.22047347]
[1759994964913,31.88,225.15,225.11,6.53047347]
[1759994965115,31.88,225.15,225.13,4.44187802]
[1759994965628,6.32536522,225.18,225.14,2.77836639]
[1759994965832,7.00536522,225.18,225.14,2.77836639]
[1759994966225,0.68,225.17,225.14,2.08836639]
[1759994966425,32.56,225.17,225.14,2.08836639]
[1759994966731,0.68,225.16,225.13,15.54657308]
[1759994967123,31.88,225.17,225.13,17.63493947]
[1759994967324,32.56,225.17,225.13,17.63493947]
[1759994967835,0.68,225.16,225.13,4.44187802]
[1759994968220,31.88,225.17,225.13,4.44187802]
[1759994968419,32.56,225.17,225.13,4.44187802]
[1759994968825,32.56,225.17,225.13,6.53024441]
[1759994969529,31.88,225.17,225.12,13.19341951]
[1759994969843,0.68,225.16,225.12,17.63549484]
[1759994970018,0.68,225.16,225.12,16.88075568]
[1759994971048,31.88,225.17,225.12,17.57075568]
[1759994971251,32.56,225.17,225.12,17.57075568]
[1759994971629,0.68,225.16,225.12,17.57075568]
[1759994972643,31.88,225.17,225.12,17.57075568]
[1759994973246,166.66,225.16,225.13,1.33362723]
[1759994973615,166.66,225.16,225.15,4.44148345]
[1759994976344,166.66,225.16,225.12,4.44190142]
[1759994976647,166.66,225.16,225.13,2.05362723]
[1759994976943,166.66,225.16,225.14,1.33362723]
[1759994977340,166.66,225.16,225.13,1.33362723]
[1759994977642,0.69,225.15,225.11,20.8]
[1759994977828,0.69,225.14,225.11,20.8]
[1759994978029,31.86,225.13,225.1,4.44247001]
[1759994978533,31.86,225.13,225.1,6.49609724]
[1759994978737,32.55,225.13,225.1,4.44247001]
[1759994978930,1.33362723,225.15,225.1,4.44247001]
[1759994979134,32.55,225.14,225.1,4.44247001]
[1759994980844,0.69,225.14,225.1,15.54864504]
[1759994981040,31.86,225.13,225.1,15.54864504]
[1759994981547,32.55,225.13,225.1,4.44247001]
[1759994983842,31.86,225.13,225.1,4.44247001]
[1759994984553,31.86,225.13,225.1,0.72]
[1759994984926,31.86,225.13,225.1,2.05362723]
[1759994985138,31.86,225.13,225.11,1.33362723]
[1759994985337,31.86,225.13,225.11,2.05362723]
[1759994986053,31.86,225.14,225.12,4.44207533]
[1759994986565,134.8,225.16,225.12,4.44207533]
[1759994986849,134.8,225.16,225.13,2.05362723]
[1759994986850,31.84,225.15,225.13,2.05362723]
[1759994988231,31.84,225.15,225.14,4.44168073]
[1759994989553,31.84,225.15,225.12,15.54726367]
[1759994989855,0.68,225.14,225.12,4.44207533]
[1759994990030,31.84,225.15,225.12,4.44207533]
[1759994991336,31.84,225.15,225.11,15.54795432]
[1759994991553,31.84,225.15,225.11,16.26795432]
[1759994992466,31.84,225.15,225.13,4.44187802]
[1759994993638,29.43277039,225.15,225.13,4.44187802]
[1759994994332,29.43277039,225.15,225.13,5.16187802]
[1759994995329,134.8,225.16,225.13,5.16187802]
[1759994995535,166.64,225.16,225.13,5.16187802]
[1759994995736,134.8,225.16,225.13,16.88020031]
[1759994995939,134.8,225.16,225.15,1.33362723]
[1759994996256,6.32536522,225.18,225.16,20.8]
[1759994996442,6.32536522,225.18,225.17,2.05362723]
[1759994996647,6.32536522,225.18,225.17,15.41965317]
[1759994996848,6.32536522,225.18,225.17,0.72]
[1759994997048,6.32536522,225.18,225.17,2.05362723]
[1759994997253,6.32536522,225.18,225.17,6.49471618]
[1759994998142,166.62,225.22,225.17,17.59743856]
[1759994998362,134.8,225.22,225.21,1.33362723]
[1759994998751,0.2,225.23,225.2,22.13362723]
[1759994999063,0.2,225.23,225.21,1.33362723]
[1759994999262,0.2,225.23,225.22,4.44010301]
[1759995000850,0.2,225.23,225.22,5.77373024]
[1759995001444,0.2,225.23,225.22,4.44010301]
[1759995002542,0.88,225.23,225.2,25.240342]
[1759995002757,0.68,225.22,225.2,25.240342]
[1759995003139,0.2,225.23,225.17,15.63763547]
[1759995003344,33.83362723,225.22,225.18,4.44081712]
[1759995003652,0.68,225.21,225.18,4.44081712]
[1759995003961,0.68,225.2,225.18,4.44081712]
[1759995004544,0.68,225.2,225.16,4.44128619]
[1759995004739,33.15362723,225.22,225.16,6.49491342]
[1759995004960,0.68,225.21,225.16,6.49491342]
[1759995005156,2.01362723,225.2,225.14,65.95659338]
[1759995005363,168.63362723,225.19,225.14,20.8]
[1759995005553,0.68,225.18,225.14,25.24168]
[1759995005751,1.33362723,225.15,225.13,4.44185042]
[1759995006051,0.67,225.15,225.13,4.44185042]
[1759995006442,0.67,225.15,225.11,4.44227266]
[1759995006651,0.67,225.14,225.11,17.8851447]
[1759995006851,0.67,225.14,225.11,4.44227266]
[1759995007867,0.67,225.13,225.11,4.44227266]
[1759995008445,0.67,225.13,225.1,4.44247001]
[1759995008646,2.00362723,225.15,225.1,4.44247001]
[1759995008858,0.67,225.14,225.1,4.44247001]
[1759995009745,2.00362723,225.15,225.11,0.68]
[1759995009946,0.67,225.14,225.09,17.96135222]
[1759995010145,0.67,225.14,225.09,18.64135222]
[1759995010358,1.33362723,225.15,225.1,0.68]
[1759995010646,2.00362723,225.15,225.09,17.96135222]
[1759995010867,2.00362723,225.15,225.1,0.68]
[1759995011163,1.33362723,225.15,225.1,0.68]
[1759995011345,0.67,225.14,225.1,0.68]
[1759995011758,0.67,225.14,225.1,5.12230673]
[1759995012154,136.13362723,225.13,225.09,13.51868912]
[1759995012367,1.33362723,225.1,225.06,20.8]
[1759995012555,136.80362723,225.09,225.06,4.44322681]
[1759995012861,134.8,225.09,225.06,4.44322681]
[1759995013044,134.8,225.09,225.06,5.12322681]
[1759995013248,134.8,225.09,225.06,4.44322681]
[1759995013454,134.8,225.09,225.06,5.12322681]
[1759995013849,134.8,225.09,225.07,0.68]
[1759995014053,134.8,225.09,225.08,0.68]
[1759995015049,134.8,225.09,225.06,5.12322681]
[1759995015866,134.8,225.09,225.06,18.61706344]
[1759995016248,134.8,225.09,225.06,19.95069067]
[1759995017566,134.8,225.09,225.08,1.33362723]
[1759995017870,135.47,225.09,225.06,26.83517476]
[1759995018366,135.47,225.09,225.06,13.49383663]
[1759995018670,135.47,225.09,225.05,4.44345539]
[1759995018974,1.33362723,225.06,224.98,0.68]
[1759995019180,33.80362723,225.05,224.98,2.01362723]
[1759995019770,33.80362723,225.05,225.0,20.8]
[1759995020077,32.47,225.05,225.0,25.24432481]
[1759995020261,31.8,225.05,225.01,0.68]
[1759995020572,31.8,225.06,225.02,2.01362723]
[1759995020867,31.8,225.06,225.02,1.33362723]
[1759995021073,31.8,225.06,225.02,2.01362723]
[1759995021458,32.47,225.06,225.01,1.33362723]
[1759995021664,32.47,225.06,225.01,2.01362723]
[1759995022365,32.47,225.06,225.01,6.4577126]
[1759995022753,31.8,225.06,225.02,0.68]
[1759995023149,31.8,225.06,225.02,2.01362723]
[1759995023487,31.8,225.06,225.03,2.01362723]
[1759995023851,31.8,225.06,225.03,1.33362723]
[1759995024055,31.8,225.06,225.02,1.33362723]
[1759995024272,31.8,225.07,225.02,6.45757713]
[1759995024473,33.80362723,225.07,225.02,5.1239499]
[1759995024773,0.67,225.06,225.01,4.44421832]
[1759995024976,33.13362723,225.07,225.01,4.44421832]
[1759995024977,2.00362723,225.05,225.01,4.44421832]
[1759995025163,0.67,225.04,225.01,4.44421832]
[1759995025358,0.67,225.04,225.0,25.24443072]
[1759995025562,0.67,225.04,225.01,20.8]
[1759995026455,0.67,225.04,225.01,25.24420675]
[1759995026883,2.00362723,225.06,225.01,25.24420675]
[1759995027178,1.33362723,225.04,224.98,1.33362723]
[1759995027354,1.33362723,225.04,224.97,13.16891202]
[1759995027355,1.33362723,225.02,224.97,17.61387]
[1759995027551,135.47,225.01,224.97,4.44495798]
[1759995027765,136.13362723,225.01,224.95,1.33362723]
[1759995027952,136.80362723,225.01,224.95,15.3614949]
[1759995028170,136.80362723,225.01,224.96,1.33362723]
[1759995028171,135.47,225.01,224.96,1.33362723]
[1759995028382,0.67,225.0,224.96,1.33362723]
[1759995028557,0.67,225.0,224.96,5.77880532]
[1759995028884,0.67,225.0,224.96,18.83597903]
[1759995029752,134.8,225.01,224.99,1.33362723]
[1759995029953,134.8,225.01,225.0,2.01362723]
[1759995030177,134.8,225.01,225.0,22.81362723]
[1759995030568,134.8,225.01,225.0,27.25807167]
[1759995031271,134.8,225.01,224.98,19.12514187]
[1759995031451,135.47,225.01,224.98,4.44483463]
[1759995031951,134.8,225.01,224.98,4.44483463]
[1759995032161,134.8,225.01,224.98,7.21140222]
[1759995032684,134.8,225.01,224.99,6.53119123]
[1759995033182,134.8,225.01,224.99,4.44462364]
[1759995033896,134.8,225.01,224.98,2.08656759]
[1759995034190,135.47,225.01,224.97,6.53141465]
[1759995034691,167.25,225.01,224.97,7.21141465]
[1759995035074,166.58,225.01,224.99,2.08656759]
[1759995035474,166.58,225.01,224.98,2.76656759]
[1759995035884,134.8,225.01,224.99,0.68]
[1759995036070,31.78,225.07,224.99,0.68]
[1759995036266,31.78,225.07,225.02,2.08656759]
[1759995036483,0.7,225.06,225.0,13.34430531]
[1759995036679,0.7,225.05,224.99,0.68]
[1759995036880,0.7,225.05,224.99,16.11206014]
[1759995036881,34.56656759,225.05,224.99,16.11206014]
[1759995037988,32.48,225.05,224.99,16.11206014]
[1759995038201,32.48,225.05,225.0,4.44444444]
[1759995038382,0.7,225.04,225.0,4.44444444]
[1759995038888,31.78,225.05,225.0,4.44444444]
[1759995039098,0.7,225.04,225.0,4.44444444]
[1759995039293,31.78,225.05,225.0,4.44444444]
[1759995039499,0.7,225.04,225.0,4.44444444]
[1759995039687,0.7,225.03,225.0,4.44444444]
[1759995040196,0.7,225.03,224.99,6.53120957]
[1759995040380,32.48,225.05,225.0,2.76656759]
[1759995040775,135.5,225.08,225.02,2.08656759]
[1759995041077,135.5,225.08,225.04,2.08656759]
[1759995041390,135.5,225.08,224.99,36.35624694]
[1759995041391,32.48,225.07,225.02,2.08656759]
[1759995041700,34.56656759,225.07,225.0,2.08656759]